fUST/lending_fUST_20251020
["ID","MTS","AMOUNT","RATE_DAILY","PERIOD"]
[391861060,1760931044301,-188.24050531,0.00025836,18]
[391861061,1760931044312,-500.0,0.00025897,2]
[391861062,1760931044322,-151.0,0.000259,13]
[391861063,1760931044331,-332.04663712,0.000259,2]
[391861064,1760931044342,-42790.34650579,0.00026,30]
[391861065,1760931044353,-692.605182,0.00026,7]
[391861066,1760931044362,-692.605182,0.00026,7]
[391861067,1760931044372,-692.605182,0.00026,7]
[391861068,1760931044383,-279.203234,0.00026,7]
[391861069,1760931044392,-692.60519,0.00026,7]
[391861070,1760931044403,-279.203234,0.00026,7]
[391861071,1760931044412,-279.203234,0.00026,7]
[391861072,1760931044421,-279.203237,0.00026,7]
[391861073,1760931044431,-402.9601108,0.00026,30]
[391861074,1760931044440,-151.0,0.00026,7]
[391861075,1760931044450,-274.72161769,0.0002602,2]
[391861076,1760931044459,-250.0,0.0002602,2]
[391861077,1760931044469,-250.0,0.0002602,2]
[391861078,1760931044478,-250.0,0.0002602,2]
[391861079,1760931044487,-250.0,0.0002602,2]
[391861080,1760931044549,-250.0,0.0002602,2]
[391861081,1760931044564,-250.0,0.0002602,2]
[391861082,1760931044573,-250.0,0.0002602,2]
[391861083,1760931044582,-293.37557517,0.0002602,2]
[391861084,1760931044591,-533.88981491,0.0002602,2]
[391861085,1760931044601,-3897.02110312,0.00026026,3]
[391861086,1760931044611,-2215.69167591,0.00026026,3]
[391861087,1760931044620,-532.90371488,0.00026068,2]
[391861088,1760931044629,-1500.0,0.00026068,2]
[391861089,1760931044639,-523.57319482,0.00026068,2]
[391861090,1760931044648,-1519.80565257,0.00026068,2]
[391861091,1760931044657,-1033.36642872,0.00026068,2]
[391861092,1760931044666,-420.0,0.0002613,2]
[391861093,1760931044675,-1680.0,0.00026131,2]
[391861094,1760931044684,-420.0,0.00026131,2]
[391861095,1760931044694,-420.0,0.00026131,2]
[391861096,1760931044703,-420.0,0.00026131,2]
[391861097,1760931044712,-420.0,0.00026131,2]
[391861098,1760931044721,-192.86864001,0.0002616,2]
[391861099,1760931044731,-541.07671105,0.00026171,2]
[391861100,1760931044740,-502.42141207,0.00026212,2]
[391861101,1760931044749,-500.81976336,0.00026212,2]
[391861102,1760931044759,-158.45552761,0.00026212,2]
[391861103,1760931044771,-166.64301674,0.00026212,2]
[391861104,1760931044780,-500.0,0.00026212,2]
[391861105,1760931044790,-158.10768188,0.00026212,2]
[391861106,1760931044799,-500.0,0.00026212,2]
[391861107,1760931044810,-500.0,0.00026212,2]
[391861108,1760931044819,-168.05889343,0.00026212,2]
[391861109,1760931044828,-160.05607709,0.00026212,2]
[391861110,1760931044838,-158.45552194,0.00026212,2]
[391861111,1760931044852,-158.45551666,0.00026212,2]
[391861112,1760931044861,-237.84333909,0.00026212,2]
[391861113,1760931044871,-158.05538179,0.00026212,2]
[391861114,1760931044880,-504.14728708,0.00026212,2]
[391861115,1760931044889,-823.95518866,0.00026244,3]
[391861116,1760931044899,-1680.0,0.0002625,2]
[391861117,1760931044909,-4159.12,0.0002633,3]
[391861118,1760931044919,-2616.74,0.0002633,3]
[391861119,1760931044928,-1576.94,0.0002633,3]
[391861120,1760931044937,-843.8,0.0002633,3]
[391861121,1760931044946,-421.9,0.0002633,3]
[391861122,1760931044956,-290.10149847,0.00026367,2]
[391861123,1760931044966,-260.0,0.00026381,2]
[391861124,1760931044977,-151.0,0.000264,16]
[391861125,1760931044986,-151.0,0.000264,10]
[391861126,1760931044995,-366.39628924,0.000265,2]
[391861127,1760931045005,-190.0811961,0.00026534,2]
[391861128,1760931045014,-153.0,0.00026534,2]
[391861129,1760931045024,-553.64373807,0.00026568,2]
[391861130,1760931045033,-425.29,0.00026576,2]
[391861131,1760931045043,-1523.82627988,0.00026616,2]
[391861132,1760931045052,-500.128155,0.00026619,7]
[391861133,1760931045063,-500.128155,0.00026619,7]
[391861134,1760931045073,-156.185151,0.00026619,7]
[391861135,1760931045082,-500.128155,0.00026619,7]
[391861136,1760931045091,-500.128155,0.00026619,7]
[391861137,1760931045103,-165.68303424,0.00026645,2]
[391861138,1760931045117,-662.73213695,0.00026645,2]
[391861139,1760931045126,-1491.14730814,0.00026645,2]
[391861140,1760931045140,-2650.92854781,0.00026645,2]
[391861141,1760931045152,-155.85951151,0.00026645,2]
[391861142,1760931045162,-623.43804605,0.00026645,2]
[391861143,1760931045171,-1402.73560362,0.00026645,2]
[391861144,1760931045180,-908.434058,0.00026676,2]
[391861145,1760931045189,-1191.51646734,0.00026679,2]
[391861146,1760931045198,-151.0,0.000267,19]
[391861147,1760931045207,-2493.75218422,0.00026748,2]
[391861148,1760931045218,-2220.47469124,0.00026751,3]
[391861149,1760931045228,-247.69130981,0.00026751,3]
[391861150,1760931045237,-1000.0,0.0002676,2]
[391861151,1760931045246,-1000.0,0.0002676,2]
[391861152,1760931045257,-1005.1520094,0.0002676,2]
[391861153,1760931045267,-350.1420737,0.00026844,2]
[391861154,1760931045276,-151.0,0.000269,12]
[391861155,1760931045285,-360.0,0.00026929,2]
[391861156,1760931045295,-4142.07585595,0.00026934,2]
[391861157,1760931045304,-150.0,0.00026973,2]
[391861158,1760931045314,-262.91856015,0.00027,7]
[391861159,1760931045323,-48830.12,0.00027,7]
[391861160,1760931045334,-151.0,0.00027,7]
[391861161,1760931045343,-225.358452,0.00027,7]
[391861162,1760931045352,-153.364683,0.00027,7]
[391861163,1760931045362,-1343.257489,0.00027,7]
[391861164,1760931045371,-1343.257489,0.00027,7]
[391861165,1760931045380,-1343.257489,0.00027,7]
[391861166,1760931045389,-1343.257489,0.00027,7]
[391861167,1760931045398,-151.0,0.00027,7]
[391861168,1760931045408,-151.0,0.00027,7]
[391861169,1760931045417,-151.0,0.00027,7]
[391861170,1760931045426,-151.0,0.00027,7]
[391861171,1760931045436,-186459.2136133,0.00027,3]
[391861172,1760931045445,-402.9601108,0.00027,3]
[391861173,1760931045455,-200.79975969,0.00027025,3]
[391861174,1760931045522,-514.71024051,0.00027025,3]
[391861175,1760931045532,-151.0,0.000271,20]
[391861176,1760931045541,-400.74594135,0.000271,2]
[391861177,1760931045551,-574.12855637,0.00027116,2]
[391861178,1760931045562,-1500.0,0.00027145,28]
[391861179,1760931045571,-1500.0,0.00027145,28]
[391861180,1760931045581,-1500.0,0.00027145,28]
[391861181,1760931045591,-1500.0,0.00027145,28]
[391861182,1760931045601,-1500.0,0.00027145,28]
[391861183,1760931045610,-1500.0,0.00027145,28]
[391861184,1760931045620,-585.69069,0.00027145,28]
[391861185,1760931045629,-151.0,0.00027155,3]
[391861186,1760931045638,-151.0,0.00027155,3]
[391861187,1760931045647,-151.0,0.00027155,3]
[391861188,1760931045657,-151.0,0.00027155,3]
[391861189,1760931045667,-151.0,0.00027155,3]
[391861190,1760931045676,-151.0,0.00027155,3]
[391861191,1760931045686,-151.0,0.00027155,3]
[391861192,1760931045695,-151.0,0.00027155,3]
[391861193,1760931045704,-151.0,0.00027155,3]
[391861194,1760931045715,-282.872339,0.00027155,3]
[391861195,1760931045724,-500.128155,0.00027155,7]
[391861196,1760931045734,-500.128155,0.00027155,7]
[391861197,1760931045743,-500.128155,0.00027155,7]
[391861198,1760931045752,-500.128155,0.00027155,7]
[391861199,1760931045761,-1000.0,0.00027155,2]
[391861200,1760931045774,-1000.0,0.00027155,2]
[391861201,1760931045783,-1000.0,0.00027155,2]
[391861202,1760931045793,-1000.0,0.00027155,2]
[391861203,1760931045802,-151.0,0.00027155,2]
[391861204,1760931045813,-1000.0,0.00027155,2]
[391861205,1760931045823,-151.0,0.00027155,2]
[391861206,1760931045833,-1000.0,0.00027155,2]
[391861207,1760931045844,-151.0,0.00027155,2]
[391861208,1760931045854,-1000.0,0.00027155,2]
[391861209,1760931045863,-151.0,0.00027155,2]
[391861210,1760931045872,-1000.0,0.00027155,2]
[391861211,1760931045882,-151.0,0.00027155,2]
[391861212,1760931045892,-1000.0,0.00027155,2]
[391861213,1760931045901,-151.0,0.00027155,2]
[391861214,1760931045914,-1000.0,0.00027155,2]
[391861215,1760931045923,-151.0,0.00027155,2]
[391861216,1760931045933,-1000.0,0.00027155,2]
[391861217,1760931045942,-194.72792766,0.00027155,2]
[391861218,1760931045962,-151.0,0.00027155,2]
[391861219,1760931045978,-1000.0,0.00027155,2]
[391861220,1760931045996,-151.0,0.00027155,2]
[391861221,1760931046015,-1000.0,0.00027155,2]
[391861222,1760931046033,-250.0,0.00027155,2]
[391861223,1760931046050,-151.0,0.00027155,2]
[391861224,1760931046067,-377.04579244,0.00027155,2]
[391861225,1760931046080,-250.0,0.00027155,2]
[391861226,1760931046097,-151.0,0.00027155,2]
[391861227,1760931046115,-250.0,0.00027155,2]
[391861229,1760931046133,-290.08453086,0.00027155,2]
[391861230,1760931046145,-250.0,0.00027155,2]
[391861231,1760931046164,-250.0,0.00027155,2]
[391861232,1760931046178,-250.0,0.00027155,2]
[391861233,1760931046193,-250.0,0.00027155,2]
[391861234,1760931046206,-250.0,0.00027155,2]
[391861235,1760931046220,-250.0,0.00027155,2]
[391861236,1760931046235,-250.0,0.00027155,2]
[391861237,1760931046249,-250.0,0.00027155,2]
[391861238,1760931046264,-250.0,0.00027155,2]
[391861239,1760931046279,-250.0,0.00027155,2]
[391861240,1760931046294,-500.0,0.00027155,2]
[391861241,1760931046309,-500.0,0.00027155,2]
[391861242,1760931046325,-500.0,0.00027155,2]
[391861243,1760931046340,-500.0,0.00027155,2]
[391861244,1760931046355,-500.0,0.00027155,2]
[391861245,1760931046369,-500.0,0.00027155,2]
[391861246,1760931046384,-500.0,0.00027155,2]
[391861247,1760931046400,-500.0,0.00027155,2]
[391861249,1760931046415,-500.0,0.00027155,2]
[391861250,1760931046430,-500.0,0.00027155,2]
[391861251,1760931046444,-500.0,0.00027155,2]
[391861252,1760931046459,-500.0,0.00027155,2]
[391861253,1760931046474,-500.0,0.00027155,2]
[391861254,1760931046488,-623.64098085,0.0002724,2]
[391861255,1760931046504,-500.0,0.00027273,2]
[391861256,1760931046519,-1500.0,0.00027308,2]
[391861257,1760931046533,-433.28505328,0.00027308,2]
[391861258,1760931046547,-9311.79522908,0.00027337,2]
[391861259,1760931046564,-191.50391445,0.00027341,2]
[391861260,1760931046578,-424.88120158,0.00027365,2]
[391861261,1760931046595,-173.24758925,0.00027375,3]
[391861262,1760931046687,-250.16525077,0.0002739,2]
[391861263,1760931046699,-198.6552585,0.0002739,2]
[391861264,1760931046709,-150.0,0.0002739,2]
[391861265,1760931046719,-1484.051966,0.00027397,30]
[391861266,1760931046729,-1484.051966,0.00027397,30]
[391861267,1760931046738,-1484.051966,0.00027397,30]
[391861268,1760931046747,-1484.051966,0.00027397,30]
[391861269,1760931046757,-1484.051966,0.00027397,30]
[391861270,1760931046767,-1484.051966,0.00027397,30]
[391861271,1760931046777,-1484.051966,0.00027397,30]
[391861272,1760931046787,-1484.051966,0.00027397,30]
[391861273,1760931046796,-1484.051966,0.00027397,30]
[391861274,1760931046807,-1484.051966,0.00027397,30]
[391861275,1760931046816,-1484.051966,0.00027397,30]
[391861276,1760931046825,-1484.051966,0.00027397,30]
[391861277,1760931046835,-1484.051966,0.00027397,30]
[391861278,1760931046845,-1484.051966,0.00027397,30]
[391861279,1760931046854,-1484.051966,0.00027397,30]
[391861280,1760931046863,-1484.051966,0.00027397,30]
[391861281,1760931046873,-1484.051966,0.00027397,30]
[391861282,1760931046883,-1484.051966,0.00027397,30]
[391861283,1760931046893,-1484.051966,0.00027397,30]
[391861284,1760931046902,-1484.051963,0.00027397,30]
[391861285,1760931046911,-2468.51,0.000274,2]
[391861286,1760931046920,-1343.257489,0.000274,30]
[391861287,1760931046930,-1343.257489,0.000274,30]
[391861288,1760931046939,-1343.257489,0.000274,30]
[391861289,1760931046949,-1343.257482,0.000274,30]
[391861290,1760931046958,-183.49625,0.000274,30]
[391861291,1760931046967,-151.0,0.000274,30]
[391861292,1760931046977,-151.0,0.000274,30]
[391861293,1760931046987,-151.0,0.000274,30]
[391861294,1760931046995,-460.0,0.00027477,2]
[391861295,1760931047005,-151.0,0.000275,16]
[391861296,1760931047014,-151.0,0.000275,14]
[391861297,1760931047023,-2620.28617563,0.000275,2]
[391861298,1760931047032,-150.44936231,0.0002751,7]
[391861299,1760931047041,-250.0,0.00027521,5]
[391861300,1760931047050,-1914.7588451,0.00027536,2]
[391861301,1760931047059,-152.315738,0.00027588,30]
[391861302,1760931047068,-500.128155,0.00027593,30]
[391861303,1760931047078,-500.128155,0.00027593,30]
[391861304,1760931047087,-500.128155,0.00027593,30]
[391861305,1760931047096,-500.12814793,0.00027593,30]
[391861306,1760931047105,-402.9601108,0.000276,30]
[391861307,1760931047114,-595.37131296,0.00027664,2]
[391861308,1760931047123,-262.22358538,0.00027675,2]
[391861309,1760931047132,-435.09559347,0.000277,2]
[391861310,1760931047141,-201.93286099,0.00027703,2]
[391861311,1760931047150,-5958.62464334,0.0002777,2]
[391861312,1760931047159,-3892.59130005,0.0002777,2]
[391861313,1760931047168,-172.3769493,0.00027773,2]
[391861314,1760931047177,-159.52815416,0.00027795,7]
[391861315,1760931047186,-501.49193626,0.00027821,5]
[391861316,1760931047195,-2000.0,0.00027856,5]
[391861317,1760931047204,-151.0,0.000279,20]
[391861318,1760931047214,-194.481,0.00027935,18]
[391861319,1760931047224,-390.15134735,0.00027983,5]
[391861320,1760931047233,-418.85131699,0.00027994,2]
[391861321,1760931047242,-151.0,0.00028,18]
[391861322,1760931047251,-15188.06332311,0.00028,2]
[391861323,1760931047260,-10338.71524354,0.00028,5]
[391861324,1760931047270,-11112.37797043,0.00028,4]
[391861325,1760931047279,-787.55736928,0.00028,2]
[391861326,1760931047288,-560.0,0.00028025,2]
[391861327,1760931047297,-350.0,0.00028068,5]
[391861328,1760931047307,-418.85131699,0.00028162,4]
[391861329,1760931047316,-418.85131699,0.00028162,4]
[391861330,1760931047326,-151.0,0.000282,10]
[391861331,1760931047335,-617.40005154,0.00028212,2]
[391861332,1760931047344,-209.40437684,0.00028251,2]
[391861333,1760931047353,-427.2404477,0.00028257,2]
[391861334,1760931047363,-469.44524559,0.000283,2]
[391861335,1760931047372,-1122.55376553,0.00028323,2]
[391861336,1760931047382,-418.85131699,0.0002833,6]
[391861337,1760931047391,-418.85131699,0.0002833,6]
[391861338,1760931047399,-587.0,0.00028334,2]
[391861339,1760931047408,-2351.0,0.00028335,2]
[391861340,1760931047418,-587.0,0.00028335,2]
[391861341,1760931047427,-362.0,0.00028335,2]
[391861342,1760931047437,-587.0,0.00028335,2]
[391861343,1760931047446,-587.0,0.00028335,2]
[391861344,1760931047455,-2500.0,0.00028404,5]
[391861345,1760931047465,-418.85131699,0.00028499,8]
[391861346,1760931047474,-418.85131699,0.00028499,8]
[391861347,1760931047483,-151.0,0.000285,15]
[391861348,1760931047492,-151.0,0.000285,19]
[391861349,1760931047501,-137261.35951211,0.000285,7]
[391861350,1760931047511,-1369.7846365,0.00028523,2]
[391861351,1760931047520,-5000.0,0.00028545,2]
[391861352,1760931047529,-660.0,0.00028573,2]
[391861353,1760931047539,-2351.0,0.00028594,2]
[391861354,1760931047601,-154.761601,0.00028595,2]
[391861355,1760931047611,-48830.12,0.000286,7]
[391861356,1760931047620,-151.0,0.000286,30]
[391861357,1760931047629,-151.0,0.000286,30]
[391861358,1760931047639,-151.0,0.000286,30]
[391861359,1760931047648,-450.0,0.00028616,5]
[391861360,1760931047657,-418.85131699,0.00028667,10]
[391861361,1760931047666,-418.85131699,0.00028667,10]
[391861362,1760931047676,-418.85131699,0.00028667,10]
[391861363,1760931047685,-418.85131699,0.00028667,10]
[391861364,1760931047694,-1191.51646734,0.00028684,2]
[391861365,1760931047703,-189.919523,0.000287,2]
[391861366,1760931047712,-640.24385345,0.0002876,2]
[391861367,1760931047721,-989.12601571,0.0002876,2]
[391861368,1760931047730,-4000.0,0.0002876,5]
[391861369,1760931047740,-2318.4149331,0.0002876,2]
[391861370,1760931047749,-250.31971598,0.0002876,2]
[391861371,1760931047759,-217.15233878,0.00028799,2]
[391861372,1760931047771,-169.83253239,0.000288,7]
[391861373,1760931047780,-189.919523,0.00028802,2]
[391861374,1760931047789,-764.78616284,0.00028862,2]
[391861375,1760931047799,-503.7948977,0.000289,2]
[391861376,1760931047809,-189.919523,0.00028904,2]
[391861377,1760931047819,-155.212055,0.00028904,2]
[391861378,1760931047828,-3000.0,0.00028952,5]
[391861379,1760931047838,-500.43550678,0.00029,2]
[391861380,1760931047849,-151.0,0.00029,16]
[391861381,1760931047859,-151.0,0.00029,20]
[391861382,1760931047868,-1001.92,0.00029,2]
[391861383,1760931047878,-189.919523,0.00029,20]
[391861384,1760931047887,-881.98862225,0.00029,2]
[391861385,1760931047897,-502.44369659,0.00029,7]
[391861386,1760931047906,-418.85131699,0.00029004,14]
[391861387,1760931047917,-189.919523,0.00029006,2]
[391861388,1760931047926,-155.212055,0.00029006,2]
[391861389,1760931047935,-1480.79596406,0.00029044,120]
[391861390,1760931047946,-286.43768979,0.00029083,2]
[391861391,1760931047955,-472.00245368,0.00029083,2]
[391861392,1760931047964,-357.10756817,0.00029087,2]
[391861393,1760931047973,-2468.51,0.000291,2]
[391861394,1760931047983,-189.919523,0.00029108,2]
[391861395,1760931047992,-155.212055,0.00029108,2]
[391861396,1760931048002,-4204.0,0.00029117,2]
[391861397,1760931048011,-760.0,0.00029121,2]
[391861398,1760931048020,-550.0,0.00029164,5]
[391861399,1760931048031,-1001.92,0.00029174,2]
[391861400,1760931048041,-161.57387509,0.00029262,5]
[391861401,1760931048052,-168.0,0.00029292,2]
[391861402,1760931048061,-663.93287602,0.00029308,2]
[391861403,1760931048071,-418.85131699,0.00029341,18]
[391861404,1760931048081,-189.6015341,0.00029347,30]
[391861405,1760931048090,-225.18697532,0.00029347,2]
[391861406,1760931048099,-350.1420737,0.00029382,2]
[391861407,1760931048108,-1995.65113873,0.00029406,2]
[391861408,1760931048118,-641.482941,0.000295,2]
[391861409,1760931048127,-1000.0,0.000295,30]
[391861410,1760931048137,-1000.0,0.000295,60]
[391861411,1760931048147,-151.0,0.000295,15]
[391861412,1760931048156,-151.0,0.000295,19]
[391861413,1760931048166,-151.0,0.000295,18]
[391861414,1760931048175,-538.14454982,0.000295,2]
[391861415,1760931048186,-3500.0,0.000295,5]
[391861416,1760931048197,-418.85131699,0.00029509,20]
[391861417,1760931048207,-313.0,0.00029564,2]
[391861418,1760931048217,-344.36233896,0.00029624,2]
[391861419,1760931048226,-309.96823022,0.0002963,2]
[391861420,1760931048235,-189.919523,0.0002965,20]
[391861421,1760931048245,-860.0,0.00029669,2]
[391861422,1760931048254,-609.0,0.00029677,30]
[391861423,1760931048264,-208.63261322,0.00029677,30]
[391861424,1760931048273,-762.0,0.00029677,30]
[391861425,1760931048282,-151.0,0.00029677,30]
[391861426,1760931048291,-500.0,0.00029677,30]
[391861427,1760931048300,-151.0,0.00029677,30]
[391861428,1760931048309,-151.0,0.00029677,30]
[391861429,1760931048319,-151.56132081,0.00029677,30]
[391861430,1760931048330,-198.69607341,0.00029677,30]
[391861431,1760931048340,-152.22319467,0.00029677,30]
[391861432,1760931048350,-152.81016524,0.00029677,2]
[391861433,1760931048359,-151.0,0.00029677,30]
[391861434,1760931048368,-151.0,0.00029677,30]
[391861435,1760931048378,-1013.230428,0.000297,2]
[391861436,1760931048388,-1489735.90879281,0.000297,2]
[391861437,1760931048398,-650.0,0.00029712,5]
[391861438,1760931048407,-609.0,0.00029732,30]
[391861439,1760931048417,-762.0,0.00029732,30]
[391861440,1760931048427,-153.16799581,0.00029732,30]
[391861441,1760931048436,-501.4444436,0.00029732,30]
[391861442,1760931048445,-152.79309133,0.00029732,30]
[391861443,1760931048455,-151.61557415,0.00029732,30]
[391861444,1760931048464,-151.0,0.00029732,30]
[391861445,1760931048473,-151.0,0.00029732,30]
[391861446,1760931048482,-609.0,0.00029787,30]
[391861447,1760931048491,-762.0,0.00029787,30]
[391861448,1760931048500,-151.0,0.00029787,30]
[391861449,1760931048509,-151.0,0.00029787,30]
[391861450,1760931048519,-994.526,0.00029826,2]
[391861451,1760931048528,-635.522,0.00029826,2]
[391861452,1760931048537,-411.0,0.00029826,2]
[391861453,1760931048546,-609.0,0.00029841,30]
[391861454,1760931048556,-762.0,0.00029841,30]
[391861455,1760931048565,-151.0,0.00029841,30]
[391861456,1760931048575,-151.0,0.00029841,30]
[391861457,1760931048584,-688.49839244,0.00029856,2]
[391861458,1760931048595,-168.0,0.00029876,2]
[391861459,1760931048604,-233.51889341,0.00029895,2]
[391861460,1760931048615,-609.0,0.00029896,30]
[391861461,1760931048625,-762.0,0.00029896,30]
[391861462,1760931048636,-163.95082602,0.00029896,30]
[391861463,1760931048645,-10015.79750329,0.000299,2]
[391861464,1760931048655,-9311.79522908,0.000299,2]
[391861465,1760931048665,-609.0,0.00029951,30]
[391861466,1760931048674,-762.0,0.00029951,30]
[391861467,1760931048683,-503.15511891,0.00029973,5]
[391861468,1760931048693,-150.0,0.00029973,5]
[391861469,1760931048703,-500.0,0.00029973,5]
[391861470,1760931048712,-152.091,0.00029978,2]
[391861471,1760931048722,-8289.0,0.0003,2]
[391861472,1760931048731,-7291.21988898,0.0003,2]
[391861473,1760931048741,-429097.35715597,0.0003,15]
[391861474,1760931048750,-296.44372343,0.0003,120]
[391861475,1760931048761,-301.6905193,0.0003,120]
[391861476,1760931048775,-27593.53368535,0.0003,3]
[391861477,1760931048785,-3422.09092866,0.0003,2]
[391861478,1760931048794,-1189.0,0.0003,45]
[391861479,1760931048805,-525.53495738,0.0003,2]
[391861480,1760931048817,-200.25779965,0.0003,2]
[391861481,1760931048827,-8048.97527326,0.0003,2]
[391861482,1760931048837,-606.0,0.0003,2]
[391861483,1760931048847,-350.84173689,0.0003,4]
[391861484,1760931048856,-12514.50718,0.0003,120]
[391861485,1760931048866,-5055.62,0.0003,2]
[391861486,1760931048876,-402.86590842,0.0003,120]
[391861487,1760931048886,-162.615,0.0003,2]
[391861488,1760931048895,-1000.0,0.0003,4]
[391861489,1760931048905,-609.0,0.00030006,30]
[391861490,1760931048914,-762.0,0.00030006,30]
[391861491,1760931048924,-392.6151505,0.00030027,30]
[391861492,1760931048934,-392.6151505,0.00030027,30]
[391861493,1760931048943,-392.6151505,0.00030027,30]
[391861494,1760931048952,-392.6151505,0.00030027,30]
[391861495,1760931048962,-392.6151505,0.00030027,30]
[391861496,1760931048971,-392.6151505,0.00030027,30]
[391861497,1760931048981,-392.6151505,0.00030027,30]
[391861498,1760931048991,-785.0514362,0.00030027,30]
[391861499,1760931049003,-4000.0,0.00030048,5]
[391861500,1760931049014,-609.0,0.00030061,30]
[391861501,1760931049023,-762.0,0.00030061,30]
[391861502,1760931049032,-48830.12,0.000301,7]
[391861503,1760931049042,-572.49420193,0.000301,2]
[391861504,1760931049051,-609.0,0.00030115,30]
[391861505,1760931049061,-762.0,0.00030115,30]
[391861506,1760931049071,-285.59600149,0.0003013,2]
[391861507,1760931049080,-302.16685916,0.00030136,120]
[391861508,1760931049090,-994.150056,0.00030137,120]
[391861509,1760931049099,-252.95916688,0.00030137,2]
[391861510,1760931049108,-609.0,0.0003017,30]
[391861511,1760931049118,-762.0,0.0003017,30]
[391861512,1760931049127,-190.1312825,0.00030192,30]
[391861513,1760931049137,-153.0,0.00030192,30]
[391861514,1760931049145,-190.1312825,0.00030192,30]
[391861515,1760931049155,-153.0,0.00030192,30]
[391861516,1760931049164,-153.0,0.00030192,30]
[391861517,1760931049174,-190.1312825,0.00030192,30]
[391861518,1760931049183,-960.0,0.00030217,2]
[391861519,1760931049193,-609.0,0.00030225,30]
[391861520,1760931049203,-762.0,0.00030225,30]
[391861521,1760931049213,-168.0,0.00030249,7]
[391861522,1760931049223,-256.04997888,0.0003026,5]
[391861523,1760931049232,-194.4227659,0.00030278,2]
[391861524,1760931049242,-609.0,0.0003028,30]
[391861525,1760931049253,-762.0,0.0003028,30]
[391861526,1760931049263,-161.58894564,0.00030296,5]
[391861527,1760931049273,-189.919523,0.000303,30]
[391861528,1760931049282,-189.919523,0.000303,20]
[391861529,1760931049291,-160.0,0.00030324,2]
[391861530,1760931049300,-609.0,0.00030335,30]
[391861531,1760931049310,-762.0,0.00030335,30]
[391861532,1760931049319,-168.0,0.00030344,2]
[391861533,1760931049328,-402.9601108,0.00030352,2]
[391861534,1760931049338,-1358.2602252,0.0003036,2]
[391861535,1760931049347,-5888.0,0.00030379,2]
[391861536,1760931049357,-609.0,0.00030389,30]
[391861537,1760931049367,-762.0,0.00030389,30]
[391861538,1760931049377,-176.035667,0.000304,4]
[391861539,1760931049386,-713.97283296,0.00030404,2]
[391861540,1760931049395,-5679.5170118,0.00030417,2]
[391861541,1760931049405,-16300.095856,0.00030436,2]
[391861542,1760931049414,-168.0,0.00030438,2]
[391861543,1760931049424,-242.15909246,0.00030443,2]
[391861544,1760931049433,-609.0,0.00030444,30]
[391861545,1760931049443,-762.0,0.00030444,30]
[391861546,1760931049452,-168.0,0.00030479,2]
[391861547,1760931049462,-3115.08669936,0.00030489,2]
[391861548,1760931049472,-327.0300024,0.00030491,2]
[391861549,1760931049482,-838.27635773,0.00030491,2]
[391861550,1760931049491,-500.99011191,0.00030492,11]
[391861551,1760931049500,-501.69533918,0.00030492,11]
[391861552,1760931049510,-609.0,0.00030499,30]
[391861553,1760931049519,-762.0,0.00030499,30]
[391861554,1760931049529,-277.0,0.000305,3]
[391861555,1760931049538,-152.21714398,0.00030521,5]
[391861556,1760931049547,-808.22476452,0.00030521,5]
[391861557,1760931049557,-313.0,0.00030533,7]
[391861558,1760931049567,-407.71481211,0.00030543,2]
[391861559,1760931049576,-609.0,0.00030554,30]
[391861560,1760931049585,-762.0,0.00030554,30]
[391861561,1760931049595,-3592.86926679,0.00030596,5]